[Event "*** Titled Tuesday Blitz"]
[Site "Chess.com"]
[Date "2020.05.05"]
[Round "5"]
[White "zala02"]
[Black "AttilaTurzo"]
[Result "1/2-1/2"]
[WhiteElo "2251"]
[BlackElo "2488"]
[TimeControl "180+1"]
[EndTime "10:57:18 PDT"]
[Termination "Game drawn by repetition"]

1. d4 {[%clk 0:03:00.9]} 1... Nf6 {[%clk 0:02:58.2]} 2. c4 {[%clk 0:02:59.7]}
2... e6 {[%clk 0:02:58.1]} 3. Nc3 {[%clk 0:02:55.4]} 3... Bb4 {[%clk 0:02:57.7]}
4. Nf3 {[%clk 0:02:54.5]} 4... O-O {[%clk 0:02:51.4]} 5. Bg5 {[%clk 0:02:52.3]}
5... h6 {[%clk 0:02:50.5]} 6. Bh4 {[%clk 0:02:47.2]} 6... c5 {[%clk 0:02:50.6]}
7. e3 {[%clk 0:02:45.8]} 7... Qa5 {[%clk 0:02:33.8]} 8. Qc2 {[%clk 0:02:17.7]}
8... Ne4 {[%clk 0:02:14.1]} 9. Rc1 {[%clk 0:02:07.1]} 9... d5 {[%clk 0:02:10.1]}
10. cxd5 {[%clk 0:02:00.9]} 10... exd5 {[%clk 0:02:06.6]} 11. Bd3 {[%clk
0:01:58.3]} 11... cxd4 {[%clk 0:01:24.9]} 12. Nxd4 {[%clk 0:01:44.9]} 12... Qxa2
{[%clk 0:01:24.9]} 13. Bxe4 {[%clk 0:01:01.8]} 13... dxe4 {[%clk 0:01:20.9]} 14.
O-O {[%clk 0:00:57.2]} 14... Qa6 {[%clk 0:00:51.2]} 15. Nxe4 {[%clk 0:00:37.2]}
15... Bd7 {[%clk 0:00:43.1]} 16. Rfd1 {[%clk 0:00:25]} 16... Nc6 {[%clk
0:00:41.1]} 17. Nxc6 {[%clk 0:00:18.8]} 17... Bxc6 {[%clk 0:00:42]} 18. Nc5
{[%clk 0:00:18.6]} 18... Qb5 {[%clk 0:00:34.3]} 19. Qc4 {[%clk 0:00:16.6]} 19...
Qxc4 {[%clk 0:00:15.7]} 20. Rxc4 {[%clk 0:00:17.5]} 20... a5 {[%clk 0:00:14.3]}
21. Nd3 {[%clk 0:00:10.7]} 21... Bb5 {[%clk 0:00:11.6]} 22. Rd4 {[%clk
0:00:10.8]} 22... Bxd3 {[%clk 0:00:08]} 23. R4xd3 {[%clk 0:00:10.4]} 23... Rfc8
{[%clk 0:00:07.2]} 24. h3 {[%clk 0:00:08.8]} 24... Kf8 {[%clk 0:00:07.4]} 25.
Bg3 {[%clk 0:00:08.5]} 25... Rc2 {[%clk 0:00:07.2]} 26. b3 {[%clk 0:00:08.2]}
26... b5 {[%clk 0:00:06.8]} 27. Bd6+ {[%clk 0:00:08.2]} 27... Bxd6 {[%clk
0:00:06.3]} 28. Rxd6 {[%clk 0:00:09.1]} 28... a4 {[%clk 0:00:06.5]} 29. bxa4
{[%clk 0:00:08.7]} 29... bxa4 {[%clk 0:00:07.4]} 30. Rd8+ {[%clk 0:00:07.4]}
30... Rxd8 {[%clk 0:00:07.4]} 31. Rxd8+ {[%clk 0:00:08.3]} 31... Ke7 {[%clk
0:00:08.2]} 32. Ra8 {[%clk 0:00:08]} 32... Rc4 {[%clk 0:00:07.4]} 33. Kf1 {[%clk
0:00:07.6]} 33... h5 {[%clk 0:00:04.8]} 34. Ke2 {[%clk 0:00:07.8]} 34... Kd6
{[%clk 0:00:04.8]} 35. Kd3 {[%clk 0:00:08.1]} 35... Rb4 {[%clk 0:00:04.5]} 36.
Kc3 {[%clk 0:00:08.2]} 36... Re4 {[%clk 0:00:04.6]} 37. Kd3 {[%clk 0:00:07.3]}
37... Rb4 {[%clk 0:00:04.3]} 38. Kc3 {[%clk 0:00:07.6]} 38... Rb3+ {[%clk
0:00:05]} 39. Kc2 {[%clk 0:00:05.1]} 39... Rb4 {[%clk 0:00:05.2]} 40. Kc3 {[%clk
0:00:05.4]} 1/2-1/2

[Event "*** Titled Tuesday Blitz"]
[Site "Chess.com"]
[Date "2020.05.05"]
[Round "5"]
[White "AnishGiri"]
[Black "GukeshDommaraju"]
[Result "1-0"]
[WhiteElo "3059"]
[BlackElo "2798"]
[TimeControl "180+1"]
[EndTime "10:57:19 PDT"]
[Termination "AnishGiri won by resignation"]

1. e4 {[%clk 0:03:00.9]} 1... c5 {[%clk 0:02:59.6]} 2. Nf3 {[%clk 0:03:01.4]}
2... Nc6 {[%clk 0:02:59.2]} 3. Bb5 {[%clk 0:03:02]} 3... g6 {[%clk 0:02:59.1]}
4. O-O {[%clk 0:03:00.7]} 4... Bg7 {[%clk 0:02:59.1]} 5. Bxc6 {[%clk 0:03:01.4]}
5... dxc6 {[%clk 0:02:58]} 6. d3 {[%clk 0:03:01.3]} 6... Nf6 {[%clk 0:02:54.9]}
7. Re1 {[%clk 0:03:01.3]} 7... O-O {[%clk 0:02:50]} 8. e5 {[%clk 0:03:01.2]}
8... Nd5 {[%clk 0:02:48.3]} 9. Nbd2 {[%clk 0:02:57.9]} 9... b6 {[%clk
0:02:39.1]} 10. h3 {[%clk 0:02:55.2]} 10... Nc7 {[%clk 0:02:34.4]} 11. b3 {[%clk
0:02:53.7]} 11... Be6 {[%clk 0:02:31.8]} 12. Ne4 {[%clk 0:02:46.8]} 12... Bd5
{[%clk 0:02:29.2]} 13. Bf4 {[%clk 0:02:33.1]} 13... Ne6 {[%clk 0:02:28.5]} 14.
Qd2 {[%clk 0:02:33.5]} 14... Nxf4 {[%clk 0:02:20.1]} 15. Qxf4 {[%clk 0:02:34.4]}
15... Qc7 {[%clk 0:02:16.2]} 16. h4 {[%clk 0:01:40]} 16... h6 {[%clk 0:01:54.9]}
17. Qg3 {[%clk 0:01:35.3]} 17... Rad8 {[%clk 0:01:51.4]} 18. Re2 {[%clk
0:01:32.8]} 18... Kh7 {[%clk 0:01:40.2]} 19. Rae1 {[%clk 0:01:31.8]} 19... f5
{[%clk 0:01:29.7]} 20. exf6 {[%clk 0:01:05.5]} 20... Qxg3 {[%clk 0:01:22.1]} 21.
Nxg3 {[%clk 0:00:58.2]} 21... exf6 {[%clk 0:01:07.4]} 22. Re7 {[%clk 0:00:54.9]}
22... Bxf3 {[%clk 0:00:26.5]} 23. gxf3 {[%clk 0:00:54.6]} 23... h5 {[%clk
0:00:26.4]} 24. R1e6 {[%clk 0:00:46.3]} 24... Rd4 {[%clk 0:00:19.4]} 25. Ne4
{[%clk 0:00:42]} 25... Kg8 {[%clk 0:00:16.5]} 26. Rxc6 {[%clk 0:00:40]} 26...
Rf7 {[%clk 0:00:15.4]} 27. Rxf7 {[%clk 0:00:33]} 27... Kxf7 {[%clk 0:00:15.7]}
28. Rc7+ {[%clk 0:00:33.9]} 28... Kg8 {[%clk 0:00:12.6]} 29. Rxa7 {[%clk
0:00:34.4]} 29... f5 {[%clk 0:00:11.4]} 30. Ra8+ {[%clk 0:00:27.5]} 30... Bf8
{[%clk 0:00:07.5]} 31. Ng5 {[%clk 0:00:23]} 31... Rd6 {[%clk 0:00:07.5]} 32. a4
{[%clk 0:00:17.9]} 32... Kg7 {[%clk 0:00:07.8]} 33. Ra7+ {[%clk 0:00:17.2]}
33... Kg8 {[%clk 0:00:07]} 34. f4 {[%clk 0:00:17.3]} 34... Rd4 {[%clk
0:00:05.3]} 35. Ra8 {[%clk 0:00:14.8]} 35... Rd6 {[%clk 0:00:03.6]} 36. Re8
{[%clk 0:00:09.9]} 36... Kg7 {[%clk 0:00:03.1]} 37. Kg2 {[%clk 0:00:10.6]} 37...
Rf6 {[%clk 0:00:02.7]} 38. Ne6+ {[%clk 0:00:10]} 1-0

[Event "*** Titled Tuesday Blitz"]
[Site "Chess.com"]
[Date "2020.05.05"]
[Round "5"]
[White "SharapovEvgeny"]
[Black "Dinamo81"]
[Result "1/2-1/2"]
[WhiteElo "2377"]
[BlackElo "2652"]
[TimeControl "180+1"]
[EndTime "10:57:19 PDT"]
[Termination "Game drawn - insufficient material"]

1. e4 {[%clk 0:02:59.4]} 1... e6 {[%clk 0:02:58.2]} 2. d4 {[%clk 0:02:58.4]}
2... d5 {[%clk 0:02:57]} 3. exd5 {[%clk 0:02:58.3]} 3... exd5 {[%clk 0:02:56]}
4. Nf3 {[%clk 0:02:58.1]} 4... Bd6 {[%clk 0:02:49]} 5. Bd3 {[%clk 0:02:57.3]}
5... Nc6 {[%clk 0:02:45.4]} 6. O-O {[%clk 0:02:55.5]} 6... Bg4 {[%clk
0:02:40.3]} 7. Re1+ {[%clk 0:02:52.1]} 7... Nge7 {[%clk 0:02:40]} 8. h3 {[%clk
0:02:49.9]} 8... Bh5 {[%clk 0:02:33.3]} 9. c3 {[%clk 0:02:45.6]} 9... Qd7 {[%clk
0:02:27.9]} 10. Nbd2 {[%clk 0:02:43.4]} 10... Bg6 {[%clk 0:02:20.7]} 11. Bf1
{[%clk 0:02:40.1]} 11... f6 {[%clk 0:02:17.8]} 12. b4 {[%clk 0:02:37.3]} 12...
O-O {[%clk 0:02:09.9]} 13. Nb3 {[%clk 0:02:33.2]} 13... b6 {[%clk 0:02:06.4]}
14. b5 {[%clk 0:02:31.1]} 14... Nd8 {[%clk 0:02:02]} 15. c4 {[%clk 0:02:22.1]}
15... dxc4 {[%clk 0:02:01.3]} 16. Bxc4+ {[%clk 0:02:20.8]} 16... Bf7 {[%clk
0:02:01.3]} 17. Qd3 {[%clk 0:02:19.9]} 17... Kh8 {[%clk 0:01:46.7]} 18. Bb2
{[%clk 0:02:09.4]} 18... Nd5 {[%clk 0:01:43.9]} 19. Rad1 {[%clk 0:02:02.6]}
19... Nf4 {[%clk 0:01:38.4]} 20. Qf1 {[%clk 0:01:54]} 20... Bxc4 {[%clk
0:01:33.4]} 21. Qxc4 {[%clk 0:01:52.5]} 21... Qf5 {[%clk 0:01:33.7]} 22. Bc1
{[%clk 0:01:42.9]} 22... Nxh3+ {[%clk 0:01:28.6]} 23. gxh3 {[%clk 0:01:41.9]}
23... Qxf3 {[%clk 0:01:29]} 24. Qd3 {[%clk 0:01:37.2]} 24... Qxd3 {[%clk
0:01:27.6]} 25. Rxd3 {[%clk 0:01:36.6]} 25... a6 {[%clk 0:01:25.2]} 26. a4
{[%clk 0:01:22.8]} 26... axb5 {[%clk 0:01:25]} 27. axb5 {[%clk 0:01:22.6]} 27...
Nf7 {[%clk 0:01:22.2]} 28. Be3 {[%clk 0:01:16.9]} 28... Ra3 {[%clk 0:01:17.4]}
29. Nc1 {[%clk 0:01:14.7]} 29... Rxd3 {[%clk 0:01:16.3]} 30. Nxd3 {[%clk
0:01:14.5]} 30... Re8 {[%clk 0:01:12.4]} 31. Ra1 {[%clk 0:01:12.9]} 31... g5
{[%clk 0:01:11.8]} 32. Ra7 {[%clk 0:01:08.7]} 32... Kg7 {[%clk 0:01:11.8]} 33.
Kg2 {[%clk 0:01:06.7]} 33... Kg6 {[%clk 0:01:11.5]} 34. Kf3 {[%clk 0:01:06]}
34... h5 {[%clk 0:01:11.5]} 35. Nb2 {[%clk 0:01:00.5]} 35... f5 {[%clk
0:00:59.7]} 36. Nc4 {[%clk 0:00:59.6]} 36... g4+ {[%clk 0:00:59.9]} 37. hxg4
{[%clk 0:00:59.3]} 37... fxg4+ {[%clk 0:00:58.4]} 38. Kg2 {[%clk 0:00:59]} 38...
Re7 {[%clk 0:00:46.5]} 39. d5 {[%clk 0:00:50.5]} 39... Kf5 {[%clk 0:00:41.6]}
40. Nxd6+ {[%clk 0:00:38]} 40... Nxd6 {[%clk 0:00:42.5]} 41. Bxb6 {[%clk
0:00:37.6]} 41... Nxb5 {[%clk 0:00:42.3]} 42. Rb7 {[%clk 0:00:37]} 42... Kf6
{[%clk 0:00:21.5]} 43. Ba5 {[%clk 0:00:29.3]} 43... Nd6 {[%clk 0:00:20.5]} 44.
Rxc7 {[%clk 0:00:28.1]} 44... Rxc7 {[%clk 0:00:19.4]} 45. Bxc7 {[%clk 0:00:28]}
45... Ke5 {[%clk 0:00:19.3]} 46. Kg3 {[%clk 0:00:25.6]} 46... Kxd5 {[%clk
0:00:18.7]} 47. Bxd6 {[%clk 0:00:24.8]} 47... Kxd6 {[%clk 0:00:19]} 48. Kh4
{[%clk 0:00:24.7]} 48... Ke5 {[%clk 0:00:19.5]} 49. Kxh5 {[%clk 0:00:24.6]}
49... Kf4 {[%clk 0:00:20.1]} 50. Kh4 {[%clk 0:00:24.4]} 50... Kf3 {[%clk
0:00:20.2]} 51. Kg5 {[%clk 0:00:24.2]} 51... Kxf2 {[%clk 0:00:19.7]} 52. Kxg4
{[%clk 0:00:24]} 1/2-1/2

[Event "*** Titled Tuesday Blitz"]
[Site "Chess.com"]
[Date "2020.05.05"]
[Round "5"]
[White "LiamPutnam2008"]
[Black "heartofatiger"]
[Result "0-1"]
[WhiteElo "2532"]
[BlackElo "2417"]
[TimeControl "180+1"]
[EndTime "10:57:20 PDT"]
[Termination "heartofatiger won by checkmate"]

1. e4 {[%clk 0:03:00.9]} 1... Nf6 {[%clk 0:02:59.8]} 2. e5 {[%clk 0:03:00.5]}
2... Nd5 {[%clk 0:03:00]} 3. d4 {[%clk 0:03:01.4]} 3... d6 {[%clk 0:03:00]} 4.
Nf3 {[%clk 0:03:01.7]} 4... g6 {[%clk 0:02:59.4]} 5. Bc4 {[%clk 0:03:00.9]} 5...
Nb6 {[%clk 0:02:59.1]} 6. Bb3 {[%clk 0:03:00.2]} 6... Bg7 {[%clk 0:02:59.7]} 7.
Qe2 {[%clk 0:02:58.8]} 7... O-O {[%clk 0:02:59.4]} 8. h3 {[%clk 0:02:58.4]} 8...
Nc6 {[%clk 0:02:56.8]} 9. O-O {[%clk 0:02:58.6]} 9... Na5 {[%clk 0:02:56.9]} 10.
Nc3 {[%clk 0:02:56.9]} 10... Nxb3 {[%clk 0:02:53.4]} 11. axb3 {[%clk 0:02:57.8]}
11... c6 {[%clk 0:02:53.2]} 12. Rd1 {[%clk 0:02:49.4]} 12... Bf5 {[%clk
0:02:47.6]} 13. Bf4 {[%clk 0:02:48.7]} 13... Re8 {[%clk 0:02:46.3]} 14. b4
{[%clk 0:02:34.2]} 14... a6 {[%clk 0:02:45.4]} 15. Bh2 {[%clk 0:02:26.1]} 15...
Nd5 {[%clk 0:02:42]} 16. Nxd5 {[%clk 0:02:21.7]} 16... cxd5 {[%clk 0:02:41.9]}
17. exd6 {[%clk 0:02:21.3]} 17... exd6 {[%clk 0:02:42.1]} 18. Qd2 {[%clk
0:02:21.9]} 18... Rc8 {[%clk 0:02:40]} 19. c3 {[%clk 0:02:21.9]} 19... Be4
{[%clk 0:02:39.9]} 20. Ne1 {[%clk 0:02:11.2]} 20... h5 {[%clk 0:02:33.9]} 21.
Nd3 {[%clk 0:02:06.6]} 21... Kh7 {[%clk 0:02:28.2]} 22. f3 {[%clk 0:02:04.5]}
22... Bf5 {[%clk 0:02:27.2]} 23. Re1 {[%clk 0:02:01.8]} 23... Qd7 {[%clk
0:02:19.4]} 24. Nf2 {[%clk 0:01:50.8]} 24... f6 {[%clk 0:01:49]} 25. g4 {[%clk
0:01:46.4]} 25... Be6 {[%clk 0:01:43]} 26. Kg2 {[%clk 0:01:41.8]} 26... Bh6
{[%clk 0:01:41.4]} 27. Bf4 {[%clk 0:01:38.1]} 27... g5 {[%clk 0:01:41.6]} 28.
Bh2 {[%clk 0:01:33.5]} 28... f5 {[%clk 0:01:35.5]} 29. Qd3 {[%clk 0:01:13.9]}
29... Kh8 {[%clk 0:01:18.4]} 30. gxh5 {[%clk 0:01:03.5]} 30... Bf7 {[%clk
0:01:12]} 31. Qd2 {[%clk 0:00:39.7]} 31... Bxh5 {[%clk 0:01:08.2]} 32. Rxe8+
{[%clk 0:00:39]} 32... Rxe8 {[%clk 0:01:07.6]} 33. Re1 {[%clk 0:00:38.4]} 33...
Bxf3+ {[%clk 0:01:02.3]} 34. Kg1 {[%clk 0:00:34.3]} 34... Be4 {[%clk 0:00:56.6]}
35. Qd1 {[%clk 0:00:23.4]} 35... Kh7 {[%clk 0:00:50.9]} 36. Qh5 {[%clk
0:00:20.3]} 36... Rg8 {[%clk 0:00:43.5]} 37. Nd1 {[%clk 0:00:15.3]} 37... Qe6
{[%clk 0:00:28.7]} 38. Ne3 {[%clk 0:00:13.4]} 38... Rg6 {[%clk 0:00:20.6]} 39.
Kf1 {[%clk 0:00:07.6]} 39... Kg7 {[%clk 0:00:20.8]} 40. Bg1 {[%clk 0:00:06.2]}
40... g4 {[%clk 0:00:20.7]} 41. hxg4 {[%clk 0:00:05.3]} 41... fxg4 {[%clk
0:00:20.5]} 42. Qh4 {[%clk 0:00:05.8]} 42... Bg5 {[%clk 0:00:20]} 43. Qxg4
{[%clk 0:00:04.8]} 43... Bxe3 {[%clk 0:00:16.2]} 44. Qxe6 {[%clk 0:00:03.2]}
44... Bd3+ {[%clk 0:00:16.2]} 45. Re2 {[%clk 0:00:02.8]} 45... Rxg1# {[%clk
0:00:15]} 0-1

[Event "*** Titled Tuesday Blitz"]
[Site "Chess.com"]
[Date "2020.05.05"]
[Round "5"]
[White "cukus"]
[Black "LittlePeasant"]
[Result "0-1"]
[WhiteElo "2505"]
[BlackElo "2749"]
[TimeControl "180+1"]
[EndTime "10:57:21 PDT"]
[Termination "LittlePeasant won on time"]

1. e4 {[%clk 0:03:00.9]} 1... c5 {[%clk 0:02:59.6]} 2. Nf3 {[%clk 0:03:00.4]}
2... e6 {[%clk 0:03:00.2]} 3. d4 {[%clk 0:03:00.4]} 3... cxd4 {[%clk 0:03:01.1]}
4. Nxd4 {[%clk 0:03:01.1]} 4... Nc6 {[%clk 0:03:01.8]} 5. Nc3 {[%clk 0:03:00.9]}
5... Qc7 {[%clk 0:03:02.2]} 6. Be3 {[%clk 0:03:01.2]} 6... a6 {[%clk 0:03:02.4]}
7. a3 {[%clk 0:03:01.6]} 7... b5 {[%clk 0:03:01.8]} 8. Nxc6 {[%clk 0:03:01]}
8... Qxc6 {[%clk 0:03:01.8]} 9. Be2 {[%clk 0:02:47.1]} 9... Bb7 {[%clk
0:03:01.5]} 10. O-O {[%clk 0:02:38.5]} 10... Rc8 {[%clk 0:03:00.7]} 11. Bf3
{[%clk 0:02:35.5]} 11... Qc7 {[%clk 0:02:59.2]} 12. Qd3 {[%clk 0:02:25]} 12...
Ne7 {[%clk 0:02:43.2]} 13. Rfd1 {[%clk 0:02:10.5]} 13... Bc6 {[%clk 0:02:10.5]}
14. a4 {[%clk 0:02:02.1]} 14... b4 {[%clk 0:02:00]} 15. Ne2 {[%clk 0:01:58.8]}
15... Ng6 {[%clk 0:01:41.1]} 16. Bd4 {[%clk 0:01:27.9]} 16... Qb7 {[%clk
0:01:36.9]} 17. c3 {[%clk 0:01:09.6]} 17... e5 {[%clk 0:01:29.4]} 18. Be3 {[%clk
0:01:07.9]} 18... Be7 {[%clk 0:01:28.6]} 19. cxb4 {[%clk 0:01:04.8]} 19... Bxb4
{[%clk 0:01:27.2]} 20. g3 {[%clk 0:00:57.4]} 20... O-O {[%clk 0:01:23.8]} 21.
Nc3 {[%clk 0:00:50.6]} 21... Bxc3 {[%clk 0:01:09]} 22. bxc3 {[%clk 0:00:50.2]}
22... f5 {[%clk 0:01:09.6]} 23. Rab1 {[%clk 0:00:39.8]} 23... Qa8 {[%clk
0:01:09.4]} 24. Bg2 {[%clk 0:00:30]} 24... fxe4 {[%clk 0:01:06]} 25. Qd6 {[%clk
0:00:24.5]} 25... Rf6 {[%clk 0:00:56.7]} 26. Qb4 {[%clk 0:00:20.8]} 26... d5
{[%clk 0:00:49.5]} 27. a5 {[%clk 0:00:17.2]} 27... h6 {[%clk 0:00:47.4]} 28. h4
{[%clk 0:00:17.1]} 28... Kh7 {[%clk 0:00:35.1]} 29. h5 {[%clk 0:00:16.8]} 29...
Nf8 {[%clk 0:00:35.5]} 30. Qe7 {[%clk 0:00:13.4]} 30... Ne6 {[%clk 0:00:28.4]}
31. Bh3 {[%clk 0:00:11.1]} 31... Re8 {[%clk 0:00:28.4]} 32. Qb4 {[%clk
0:00:09.3]} 32... Ng5 {[%clk 0:00:16.1]} 33. Bxg5 {[%clk 0:00:08.7]} 33... hxg5
{[%clk 0:00:17]} 34. Qc5 {[%clk 0:00:08.1]} 34... Ref8 {[%clk 0:00:15]} 35. Rd2
{[%clk 0:00:07.2]} 35... Bb5 {[%clk 0:00:13.4]} 36. Bg2 {[%clk 0:00:04.3]} 36...
Rc8 {[%clk 0:00:06.3]} 37. Qb4 {[%clk 0:00:03.5]} 37... Bc4 {[%clk 0:00:05.6]}
38. Qa3 {[%clk 0:00:02.1]} 38... Qa7 {[%clk 0:00:05.9]} 39. Rb4 {[%clk
0:00:01.3]} 39... Rcf8 {[%clk 0:00:06.3]} 40. Qb2 {[%clk 0:00:01.2]} 40... Qc5
{[%clk 0:00:06.1]} 0-1

[Event "*** Titled Tuesday Blitz"]
[Site "Chess.com"]
[Date "2020.05.05"]
[Round "5"]
[White "IriBu"]
[Black "salomez"]
[Result "1/2-1/2"]
[WhiteElo "2440"]
[BlackElo "2229"]
[TimeControl "180+1"]
[EndTime "10:57:21 PDT"]
[Termination "Game drawn - insufficient material"]

1. e4 {[%clk 0:03:00.9]} 1... c5 {[%clk 0:02:59.8]} 2. Nf3 {[%clk 0:03:00.9]}
2... e6 {[%clk 0:02:59.6]} 3. d4 {[%clk 0:02:52.7]} 3... cxd4 {[%clk 0:03:00.5]}
4. Nxd4 {[%clk 0:02:52.9]} 4... Nf6 {[%clk 0:02:59.9]} 5. Nc3 {[%clk 0:02:52.3]}
5... Nc6 {[%clk 0:03:00.2]} 6. a3 {[%clk 0:02:50.8]} 6... Be7 {[%clk 0:02:48.5]}
7. Be3 {[%clk 0:02:48.4]} 7... d6 {[%clk 0:02:46.5]} 8. f3 {[%clk 0:02:48.7]}
8... Bd7 {[%clk 0:02:38]} 9. Qd2 {[%clk 0:02:48.6]} 9... Nxd4 {[%clk 0:02:37.3]}
10. Bxd4 {[%clk 0:02:48]} 10... Bc6 {[%clk 0:02:36.5]} 11. g4 {[%clk 0:02:47.1]}
11... Qa5 {[%clk 0:02:31.2]} 12. O-O-O {[%clk 0:02:40.1]} 12... O-O-O {[%clk
0:02:30.6]} 13. Kb1 {[%clk 0:02:38.6]} 13... Kb8 {[%clk 0:02:27.1]} 14. h4
{[%clk 0:02:37.4]} 14... e5 {[%clk 0:02:19.1]} 15. Be3 {[%clk 0:02:14.4]} 15...
d5 {[%clk 0:02:16.4]} 16. exd5 {[%clk 0:02:13.5]} 16... Nxd5 {[%clk 0:02:11.5]}
17. Nxd5 {[%clk 0:02:13.6]} 17... Qxd2 {[%clk 0:02:09.2]} 18. Rxd2 {[%clk
0:02:13.7]} 18... Bxd5 {[%clk 0:02:07.6]} 19. Be2 {[%clk 0:02:13.7]} 19... Rd7
{[%clk 0:01:56.2]} 20. h5 {[%clk 0:02:11.7]} 20... h6 {[%clk 0:01:52.3]} 21. c4
{[%clk 0:02:05.6]} 21... Be6 {[%clk 0:01:47.7]} 22. Rxd7 {[%clk 0:02:05]} 22...
Bxd7 {[%clk 0:01:47.6]} 23. Rd1 {[%clk 0:02:02.4]} 23... Bc6 {[%clk 0:01:46.8]}
24. b4 {[%clk 0:01:56.2]} 24... Rd8 {[%clk 0:01:40.1]} 25. Rxd8+ {[%clk
0:01:53.9]} 25... Bxd8 {[%clk 0:01:39.8]} 26. b5 {[%clk 0:01:54.2]} 26... Bd7
{[%clk 0:01:36.6]} 27. c5 {[%clk 0:01:53.4]} 27... Bg5 {[%clk 0:01:23]} 28. Bxg5
{[%clk 0:01:49.2]} 28... hxg5 {[%clk 0:01:22.7]} 29. Kb2 {[%clk 0:01:45.5]}
29... f5 {[%clk 0:01:16.9]} 30. Kc3 {[%clk 0:01:40.1]} 30... Kc7 {[%clk
0:01:15.4]} 31. a4 {[%clk 0:01:34.6]} 31... Be6 {[%clk 0:01:08.3]} 32. Kb4
{[%clk 0:01:25.4]} 32... b6 {[%clk 0:00:56.5]} 33. a5 {[%clk 0:01:19.9]} 33...
e4 {[%clk 0:00:51.5]} 34. gxf5 {[%clk 0:01:15]} 34... Bxf5 {[%clk 0:00:40]} 35.
fxe4 {[%clk 0:01:13.3]} 35... Bxe4 {[%clk 0:00:39.6]} 36. Bg4 {[%clk 0:01:13.3]}
36... Bd3 {[%clk 0:00:30.4]} 37. Bf3 {[%clk 0:01:00.5]} 37... bxc5+ {[%clk
0:00:19.8]} 38. Kxc5 {[%clk 0:00:59.9]} 38... Bf1 {[%clk 0:00:13.1]} 39. b6+
{[%clk 0:00:51.9]} 39... axb6+ {[%clk 0:00:12.1]} 40. axb6+ {[%clk 0:00:52.8]}
40... Kb8 {[%clk 0:00:12.6]} 41. Kd6 {[%clk 0:00:49.9]} 41... Bh3 {[%clk
0:00:11.1]} 42. Ke7 {[%clk 0:00:45.3]} 42... g4 {[%clk 0:00:11]} 43. Bh1 {[%clk
0:00:44.5]} 43... g3 {[%clk 0:00:10.8]} 44. Kf7 {[%clk 0:00:44.7]} 44... g2
{[%clk 0:00:10.3]} 45. Bxg2 {[%clk 0:00:44.7]} 45... Bxg2 {[%clk 0:00:11]} 46.
Kxg7 {[%clk 0:00:45.6]} 46... Be4 {[%clk 0:00:10.2]} 47. h6 {[%clk 0:00:46.5]}
47... Kb7 {[%clk 0:00:10.7]} 48. h7 {[%clk 0:00:47.4]} 48... Bxh7 {[%clk
0:00:09.4]} 49. Kxh7 {[%clk 0:00:48.3]} 49... Kxb6 {[%clk 0:00:10.3]} 1/2-1/2